fUST/lending_fUST_20250121
["ID","MTS","AMOUNT","RATE_DAILY","PERIOD"]
[349815102,1737447041703,-500.0,0.0002315,3]
[349815103,1737447041715,-500.0,0.0002315,3]
[349815104,1737447041726,-500.0,0.0002315,3]
[349815105,1737447041735,-500.0,0.0002315,3]
[349815106,1737447041744,-500.0,0.0002315,3]
[349815107,1737447041754,-500.0,0.0002315,3]
[349815108,1737447041763,-500.0,0.0002315,3]
[349815109,1737447041772,-404.53961746,0.0002315,3]
[349815110,1737447041782,-500.0,0.0002315,3]
[349815111,1737447041791,-500.0,0.0002315,3]
[349815112,1737447041801,-500.0,0.0002315,3]
[349815113,1737447041811,-500.0,0.0002315,2]
[349815114,1737447041821,-1069.65,0.0002315,3]
[349815115,1737447041830,-500.0,0.0002315,3]
[349815116,1737447041840,-11351.64,0.0002315,3]
[349815117,1737447041849,-4767.4,0.0002315,3]
[349815118,1737447041858,-500.0,0.0002315,3]
[349815119,1737447041867,-500.0,0.0002315,3]
[349815120,1737447041877,-1948.11,0.0002315,3]
[349815121,1737447041887,-621.07,0.0002315,3]
[349815122,1737447041897,-500.0,0.0002315,3]
[349815123,1737447041906,-500.0,0.0002315,3]
[349815124,1737447041915,-500.0,0.0002315,3]
[349815125,1737447041925,-1386.82,0.0002315,3]
[349815126,1737447041934,-581.99,0.0002315,3]
[349815127,1737447041944,-759.93,0.0002315,3]
[349815128,1737447041953,-500.0,0.0002315,3]
[349815129,1737447041963,-571.72,0.0002315,3]
[349815130,1737447041977,-500.0,0.0002315,3]
[349815131,1737447041988,-637.34,0.0002315,3]
[349815132,1737447041998,-500.0,0.0002315,3]
[349815133,1737447042007,-1257.57,0.0002315,3]
[349815134,1737447042018,-500.0,0.0002315,3]
[349815135,1737447042028,-1140.41,0.0002315,3]
[349815136,1737447042039,-2502.49,0.0002315,3]
[349815137,1737447042049,-6827.36,0.0002315,3]
[349815138,1737447042059,-617.21,0.0002315,3]
[349815139,1737447042069,-516.7,0.0002315,3]
[349815140,1737447042079,-846.67,0.0002315,3]
[349815141,1737447042089,-1664.63,0.0002315,3]
[349815142,1737447042099,-3068.8,0.0002315,3]
[349815143,1737447042108,-649.81,0.0002315,3]
[349815144,1737447042118,-19863.67,0.0002315,3]
[349815145,1737447042128,-900.06,0.0002315,3]
[349815146,1737447042138,-1850.83,0.0002315,3]
[349815147,1737447042148,-500.0,0.0002315,3]
[349815148,1737447042158,-500.0,0.0002315,3]
[349815149,1737447042168,-763.55,0.0002315,3]
[349815150,1737447042178,-728.43,0.0002315,3]
[349815151,1737447042188,-540.1,0.0002315,3]
[349815152,1737447042197,-1507.39,0.0002315,3]
[349815153,1737447042207,-500.0,0.0002315,3]
[349815154,1737447042219,-763.12,0.0002315,3]
[349815155,1737447042228,-500.0,0.0002315,3]
[349815156,1737447042237,-1194.01,0.0002315,3]
[349815157,1737447042247,-543.78,0.0002315,3]
[349815158,1737447042257,-406.10970343,0.0002315,3]
[349815159,1737447042266,-753.14,0.0002315,3]
[349815160,1737447042276,-500.0,0.0002315,3]
[349815161,1737447042286,-500.0,0.0002315,3]
[349815162,1737447042295,-544.16,0.0002315,3]
[349815163,1737447042304,-2057.37,0.0002315,3]
[349815164,1737447042315,-680.11,0.0002315,3]
[349815165,1737447042324,-500.0,0.0002315,3]
[349815166,1737447042334,-500.0,0.0002315,3]
[349815167,1737447042344,-500.0,0.0002315,3]
[349815168,1737447042353,-506.67934786,0.00023202,2]
[349815169,1737447042363,-1000.0,0.00023202,2]
[349815170,1737447042372,-500.0,0.0002325,30]
[349815171,1737447042382,-500.0,0.0002325,2]
[349815172,1737447042391,-500.0,0.0002325,7]
[349815173,1737447042402,-5000.0,0.00023275,7]
[349815174,1737447042411,-500.0,0.00023287,3]
[349815175,1737447042421,-500.0,0.00023287,3]
[349815176,1737447042431,-500.0,0.00023287,3]
[349815177,1737447042440,-936.92,0.00023287,3]
[349815178,1737447042450,-500.0,0.00023287,3]
[349815179,1737447042461,-500.0,0.00023287,3]
[349815180,1737447042472,-500.0,0.00023287,3]
[349815181,1737447042482,-500.0,0.00023287,3]
[349815182,1737447042491,-500.0,0.00023287,3]
[349815183,1737447042502,-328.38920983,0.00023287,3]
[349815184,1737447042511,-324.55956292,0.00023287,3]
[349815185,1737447042521,-500.0,0.00023287,3]
[349815186,1737447042530,-500.0,0.00023287,3]
[349815187,1737447042540,-500.0,0.00023287,3]
[349815188,1737447042550,-500.0,0.00023287,2]
[349815189,1737447042560,-1069.65,0.00023287,3]
[349815190,1737447042570,-500.0,0.00023287,3]
[349815191,1737447042580,-11351.64,0.00023287,3]
[349815192,1737447042590,-4767.4,0.00023287,3]
[349815193,1737447042599,-500.0,0.00023287,3]
[349815194,1737447042609,-500.0,0.00023287,3]
[349815195,1737447042618,-1948.11,0.00023287,3]
[349815196,1737447042627,-621.07,0.00023287,3]
[349815197,1737447042637,-500.0,0.00023287,3]
[349815198,1737447042646,-500.0,0.00023287,3]
[349815199,1737447042656,-525.50238757,0.00023287,3]
[349815200,1737447042667,-1386.82,0.00023287,3]
[349815201,1737447042676,-581.99,0.00023287,3]
[349815202,1737447042687,-759.93,0.00023287,3]
[349815203,1737447042697,-500.0,0.00023287,3]
[349815204,1737447042706,-571.72,0.00023287,3]
[349815205,1737447042716,-500.0,0.00023287,3]
[349815206,1737447042726,-637.34,0.00023287,3]
[349815207,1737447042735,-500.0,0.00023287,3]
[349815208,1737447042746,-1257.57,0.00023287,3]
[349815209,1737447042755,-500.0,0.00023287,3]
[349815210,1737447042765,-1140.41,0.00023287,3]
[349815211,1737447042775,-2502.49,0.00023287,3]
[349815212,1737447042784,-617.21,0.00023287,3]
[349815213,1737447042795,-6827.36,0.00023287,3]
[349815214,1737447042804,-516.7,0.00023287,3]
[349815215,1737447042813,-846.67,0.00023287,3]
[349815216,1737447042823,-1664.63,0.00023287,3]
[349815217,1737447042832,-3068.8,0.00023287,3]
[349815218,1737447042841,-649.81,0.00023287,3]
[349815219,1737447042851,-19863.67,0.00023287,3]
[349815220,1737447042861,-900.06,0.00023287,3]
[349815221,1737447042871,-1850.83,0.00023287,3]
[349815222,1737447042880,-500.0,0.00023287,3]
[349815223,1737447042890,-500.0,0.00023287,3]
[349815224,1737447042900,-763.55,0.00023287,3]
[349815225,1737447042909,-728.43,0.00023287,3]
[349815226,1737447042919,-540.1,0.00023287,3]
[349815227,1737447042929,-1507.39,0.00023287,3]
[349815228,1737447042939,-500.0,0.00023287,3]
[349815229,1737447042948,-763.12,0.00023287,3]
[349815230,1737447042958,-500.0,0.00023287,3]
[349815231,1737447042967,-1194.01,0.00023287,3]
[349815232,1737447042978,-543.78,0.00023287,3]
[349815233,1737447042992,-753.14,0.00023287,3]
[349815235,1737447043002,-500.0,0.00023287,3]
[349815236,1737447043011,-500.0,0.00023287,3]
[349815237,1737447043020,-544.16,0.00023287,3]
[349815238,1737447043030,-2057.37,0.00023287,3]
[349815239,1737447043039,-680.11,0.00023287,3]
[349815240,1737447043048,-500.0,0.00023287,3]
[349815241,1737447043059,-7627.15,0.000233,14]
[349815242,1737447043068,-501.56535004,0.00023318,2]
[349815243,1737447043078,-500.0,0.00023424,3]
[349815244,1737447043087,-500.0,0.00023424,3]
[349815245,1737447043097,-1355.15106494,0.00023424,3]
[349815247,1737447043107,-476.7359679,0.00023424,3]
[349815248,1737447043116,-358.32970792,0.00023424,3]
[349815249,1737447043126,-500.0,0.00023424,3]
[349815250,1737447043135,-936.92,0.00023424,3]
[349815251,1737447043144,-500.0,0.00023424,3]
[349815252,1737447043154,-500.0,0.00023424,3]
[349815253,1737447043163,-500.0,0.00023424,3]
[349815255,1737447043172,-500.0,0.00023424,3]
[349815257,1737447043181,-500.0,0.00023424,3]
[349815258,1737447043190,-500.0,0.00023424,3]
[349815259,1737447043199,-500.0,0.00023424,3]
[349815260,1737447043209,-500.0,0.00023424,3]
[349815262,1737447043220,-500.0,0.00023424,2]
[349815263,1737447043229,-1069.65,0.00023424,3]
[349815264,1737447043238,-500.0,0.00023424,3]
[349815266,1737447043247,-11351.64,0.00023424,3]
[349815268,1737447043256,-4767.4,0.00023424,3]
[349815270,1737447043265,-500.0,0.00023424,3]
[349815272,1737447043274,-500.0,0.00023424,3]
[349815274,1737447043283,-1948.11,0.00023424,3]
[349815276,1737447043292,-621.07,0.00023424,3]
[349815278,1737447043301,-463.85225697,0.00023424,3]
[349815279,1737447043310,-500.0,0.00023424,3]
[349815281,1737447043320,-1386.82,0.00023424,3]
[349815282,1737447043329,-581.99,0.00023424,3]
[349815284,1737447043338,-759.93,0.00023424,3]
[349815286,1737447043347,-500.0,0.00023424,3]
[349815288,1737447043356,-571.72,0.00023424,3]
[349815289,1737447043365,-531.69424385,0.00023424,3]
[349815291,1737447043375,-637.34,0.00023424,3]
[349815293,1737447043385,-500.0,0.00023424,3]
[349815295,1737447043394,-1257.57,0.00023424,3]
[349815297,1737447043406,-500.0,0.00023424,3]
[349815299,1737447043415,-1140.41,0.00023424,3]
[349815300,1737447043425,-2502.49,0.00023424,3]
[349815302,1737447043434,-617.21,0.00023424,3]
[349815304,1737447043444,-6827.36,0.00023424,3]
[349815306,1737447043454,-516.7,0.00023424,3]
[349815308,1737447043463,-846.67,0.00023424,3]
[349815310,1737447043474,-1664.63,0.00023424,3]
[349815312,1737447043484,-3068.8,0.00023424,3]
[349815313,1737447043495,-649.81,0.00023424,3]
[349815315,1737447043504,-19863.67,0.00023424,3]
[349815317,1737447043514,-900.06,0.00023424,3]
[349815319,1737447043524,-1850.83,0.00023424,3]
[349815321,1737447043533,-500.0,0.00023424,3]
[349815322,1737447043542,-500.0,0.00023424,3]
[349815324,1737447043552,-763.55,0.00023424,3]
[349815326,1737447043561,-728.43,0.00023424,3]
[349815328,1737447043571,-540.1,0.00023424,3]
[349815330,1737447043581,-1507.39,0.00023424,3]
[349815332,1737447043591,-500.0,0.00023424,3]
[349815334,1737447043601,-763.12,0.00023424,3]
[349815336,1737447043610,-500.0,0.00023424,3]
[349815338,1737447043620,-1194.01,0.00023424,3]
[349815340,1737447043630,-543.78,0.00023424,3]
[349815342,1737447043639,-753.14,0.00023424,3]
[349815343,1737447043648,-500.0,0.00023424,3]
[349815345,1737447043658,-500.0,0.00023424,3]
[349815347,1737447043667,-544.16,0.00023424,3]
[349815349,1737447043676,-2057.37,0.00023424,3]
[349815351,1737447043686,-680.11,0.00023424,3]
[349815353,1737447043695,-187.62876494,0.00023424,3]
[349815355,1737447043705,-416.82,0.00023431,2]
[349815357,1737447043714,-5000.0,0.00023432,2]
[349815359,1737447043724,-5000.0,0.00023432,2]
[349815361,1737447043733,-5000.0,0.00023432,2]
[349815362,1737447043743,-5000.0,0.00023432,2]
[349815364,1737447043753,-5000.0,0.00023432,2]
[349815366,1737447043762,-619.60744733,0.000235,2]
[349815368,1737447043771,-53543.5657849,0.000235,7]
[349815370,1737447043780,-500.0,0.000235,2]
[349815372,1737447043790,-11846.45,0.000235,2]
[349815374,1737447043799,-2000.0,0.000235,2]
[349815376,1737447043808,-500.0,0.00023561,3]
[349815378,1737447043818,-936.92,0.00023561,3]
[349815380,1737447043827,-500.0,0.00023561,3]
[349815382,1737447043838,-500.0,0.00023561,3]
[349815384,1737447043846,-500.0,0.00023561,3]
[349815386,1737447043855,-500.0,0.00023561,3]
[349815388,1737447043868,-500.0,0.00023561,3]
[349815390,1737447043877,-500.0,0.00023561,3]
[349815391,1737447043887,-500.0,0.00023561,3]
[349815393,1737447043896,-217.8055382,0.00023561,3]
[349815395,1737447043906,-500.0,0.00023561,2]
[349815397,1737447043915,-1069.65,0.00023561,3]
[349815399,1737447043925,-233.79559977,0.00023561,3]
[349815401,1737447043934,-11351.64,0.00023561,3]
[349815403,1737447043944,-4767.4,0.00023561,3]
[349815405,1737447043953,-500.0,0.00023561,3]
[349815407,1737447043962,-500.0,0.00023561,3]
[349815408,1737447043973,-1948.11,0.00023561,3]
[349815410,1737447043985,-621.07,0.00023561,3]
[349815412,1737447043994,-500.0,0.00023561,3]
[349815414,1737447044006,-1386.82,0.00023561,3]
[349815416,1737447044017,-581.99,0.00023561,3]
[349815418,1737447044026,-759.93,0.00023561,3]
[349815420,1737447044035,-500.0,0.00023561,3]
[349815422,1737447044045,-571.72,0.00023561,3]
[349815423,1737447044054,-637.34,0.00023561,3]
[349815424,1737447044067,-500.0,0.00023561,3]
[349815426,1737447044077,-1257.57,0.00023561,3]
[349815428,1737447044086,-500.0,0.00023561,3]
[349815430,1737447044095,-1140.41,0.00023561,3]
[349815431,1737447044105,-2502.49,0.00023561,3]
[349815433,1737447044115,-6827.36,0.00023561,3]
[349815435,1737447044124,-617.21,0.00023561,3]
[349815436,1737447044132,-473.67098958,0.00023561,3]
[349815437,1737447044591,-214.42112072,0.00021734,2]
[349815438,1737447044600,-3487.54,0.00021917,3]
[349815439,1737447044611,-3487.54,0.00022054,3]
[349815440,1737447044620,-1085.41809728,0.00022191,3]
[349815441,1737447044631,-2402.12190272,0.00022191,3]
[349815442,1737447044640,-3487.54,0.00022328,3]
[349815443,1737447044650,-3487.54,0.00022465,3]
[349815444,1737447044659,-3487.54,0.00022602,3]
[349815445,1737447044668,-3487.54,0.00022739,3]
[349815446,1737447044677,-3487.54,0.00022876,3]
[349815447,1737447044687,-757.46419635,0.000229,3]
[349815448,1737447044696,-757.46419623,0.00022969,3]
[349815449,1737447044705,-3487.54,0.00023013,3]
[349815450,1737447044715,-757.46419623,0.00023038,3]
[349815451,1737447044726,-757.46419623,0.00023107,3]
[349815452,1737447044736,-3487.54,0.0002315,3]
[349815453,1737447044745,-3487.54,0.00023287,3]
[349815454,1737447044754,-3487.54,0.00023424,3]
[349815455,1737447044764,-43.02901042,0.00023561,3]
[349815456,1737447044774,-846.67,0.00023561,3]
[349815457,1737447044784,-1664.63,0.00023561,3]
[349815458,1737447044793,-3068.8,0.00023561,3]
[349815459,1737447044802,-649.81,0.00023561,3]
[349815460,1737447044811,-19863.67,0.00023561,3]
[349815461,1737447044820,-900.06,0.00023561,3]
[349815462,1737447044830,-500.0,0.00023561,3]
[349815463,1737447044840,-1850.83,0.00023561,3]
[349815464,1737447044849,-500.0,0.00023561,3]
[349815465,1737447044858,-763.55,0.00023561,3]
[349815466,1737447044867,-728.43,0.00023561,3]
[349815467,1737447044877,-540.1,0.00023561,3]
[349815468,1737447044886,-1507.39,0.00023561,3]
[349815469,1737447044896,-500.0,0.00023561,3]
[349815470,1737447044905,-763.12,0.00023561,3]
[349815471,1737447044915,-604.84275786,0.00023561,3]
[349815472,1737447044924,-1194.01,0.00023561,3]
[349815473,1737447044933,-543.78,0.00023561,3]
[349815474,1737447044943,-753.14,0.00023561,3]
[349815475,1737447044952,-500.0,0.00023561,3]
[349815476,1737447044961,-500.0,0.00023561,3]
[349815477,1737447044971,-544.16,0.00023561,3]
[349815478,1737447044989,-2057.37,0.00023561,3]
[349815479,1737447044998,-680.11,0.00023561,3]
[349815480,1737447045007,-3487.54,0.00023561,3]
[349815481,1737447045016,-5020.21909979,0.00023596,2]
[349815482,1737447045025,-5000.0,0.00023596,2]
[349815483,1737447045037,-5000.0,0.00023596,2]
[349815484,1737447045046,-5000.0,0.00023596,2]
[349815485,1737447045055,-5000.0,0.00023596,2]
[349815486,1737447045064,-385.0,0.000236,10]
[349815487,1737447045074,-7935.27488222,0.0002361,2]
[349815488,1737447045083,-499.9999981,0.00023688,2]
[349815489,1737447045092,-500.0,0.00023698,3]
[349815490,1737447045101,-500.0,0.00023698,3]
[349815491,1737447045110,-500.0,0.00023698,3]
[349815492,1737447045120,-500.0,0.00023698,3]
[349815493,1737447045130,-500.0,0.00023698,3]
[349815494,1737447045139,-500.0,0.00023698,3]
[349815495,1737447045149,-566.05348261,0.00023698,3]
[349815496,1737447045158,-500.0,0.00023698,3]
[349815497,1737447045167,-500.0,0.00023698,3]
[349815498,1737447045176,-196.74586922,0.00023698,3]
[349815499,1737447045188,-303.25413078,0.00023698,3]
[349815500,1737447045198,-500.0,0.00023698,2]
[349815501,1737447045207,-1069.65,0.00023698,3]
[349815502,1737447045216,-22.50838454,0.00023698,3]
[349815503,1737447045280,-757.46419623,0.00023176,3]
[349815504,1737447045290,-757.46419623,0.00023245,3]
[349815505,1737447045299,-757.46419623,0.00023314,3]
[349815506,1737447045309,-2673.36201383,0.00023324,2]
[349815507,1737447045318,-757.46419623,0.00023383,3]
[349815508,1737447045327,-757.46419623,0.00023452,3]
[349815509,1737447045336,-11329.13161546,0.00023698,3]
[349815510,1737447045346,-500.0,0.00023698,3]
[349815511,1737447045355,-500.0,0.00023698,3]
[349815512,1737447045364,-1948.11,0.00023698,3]
[349815513,1737447045374,-621.07,0.00023698,3]
[349815514,1737447045383,-500.0,0.00023698,3]
[349815515,1737447045392,-1386.82,0.00023698,3]
[349815516,1737447045401,-581.99,0.00023698,3]
[349815517,1737447045412,-759.93,0.00023698,3]
[349815518,1737447045421,-500.0,0.00023698,3]
[349815519,1737447045431,-571.72,0.00023698,3]
[349815520,1737447045440,-637.34,0.00023698,3]
[349815521,1737447045449,-500.0,0.00023698,3]
[349815522,1737447045459,-1257.57,0.00023698,3]
[349815523,1737447045468,-500.0,0.00023698,3]
[349815524,1737447045478,-1140.41,0.00023698,3]
[349815525,1737447045488,-2502.49,0.00023698,3]
[349815526,1737447045497,-6827.36,0.00023698,3]
[349815527,1737447045506,-617.21,0.00023698,3]
[349815528,1737447045516,-516.7,0.00023698,3]
[349815529,1737447045525,-846.67,0.00023698,3]
[349815530,1737447045534,-1664.63,0.00023698,3]
[349815531,1737447045543,-3068.8,0.00023698,3]
[349815532,1737447045552,-649.81,0.00023698,3]
[349815533,1737447045563,-19863.67,0.00023698,3]
[349815534,1737447045572,-900.06,0.00023698,3]
[349815535,1737447045584,-1850.83,0.00023698,3]
[349815536,1737447045593,-500.0,0.00023698,3]
[349815537,1737447045603,-500.0,0.00023698,3]
[349815538,1737447045614,-763.55,0.00023698,3]
[349815539,1737447045624,-728.43,0.00023698,3]
[349815540,1737447045634,-540.1,0.00023698,3]
[349815541,1737447045644,-1507.39,0.00023698,3]
[349815542,1737447045653,-500.0,0.00023698,3]
[349815543,1737447045662,-763.12,0.00023698,3]
[349815544,1737447045674,-1194.01,0.00023698,3]
[349815545,1737447045685,-543.78,0.00023698,3]
[349815546,1737447045695,-753.14,0.00023698,3]
[349815547,1737447045704,-500.0,0.00023698,3]
[349815548,1737447045714,-500.0,0.00023698,3]
[349815549,1737447045723,-544.16,0.00023698,3]
[349815550,1737447045733,-2057.37,0.00023698,3]
[349815551,1737447045743,-680.11,0.00023698,3]
[349815552,1737447045753,-3487.54,0.00023698,3]
[349815553,1737447045762,-500.0,0.0002375,2]
[349815554,1737447045772,-1327.0,0.0002381,7]
[349815555,1737447045781,-2698.51302721,0.00023835,5]
[349815556,1737447045791,-429.65543341,0.00023835,5]
[349815557,1737447045800,-591.43303547,0.00023835,3]
[349815558,1737447045810,-500.0,0.00023835,3]
[349815559,1737447045819,-500.0,0.00023835,3]
[349815560,1737447045829,-500.0,0.00023835,3]
[349815561,1737447045838,-500.0,0.00023835,3]
[349815562,1737447045847,-500.0,0.00023835,3]
[349815563,1737447045857,-500.0,0.00023835,3]
[349815564,1737447045866,-500.0,0.00023835,2]
[349815565,1737447045876,-1069.65,0.00023835,3]
[349815566,1737447045885,-11351.64,0.00023835,3]
[349815567,1737447045895,-500.0,0.00023835,3]
[349815568,1737447045905,-500.0,0.00023835,3]
[349815569,1737447045914,-1948.11,0.00023835,3]
[349815570,1737447045924,-621.07,0.00023835,3]
[349815571,1737447045933,-232.06847642,0.00023835,3]
[349815572,1737447045942,-1386.82,0.00023835,3]
[349815573,1737447045951,-581.99,0.00023835,3]
[349815574,1737447045960,-759.93,0.00023835,3]
[349815575,1737447045971,-500.0,0.00023835,3]
[349815576,1737447045982,-571.72,0.00023835,3]
[349815577,1737447045993,-637.34,0.00023835,3]
[349815578,1737447046003,-379.86934078,0.00023835,3]
[349815579,1737447046012,-1257.57,0.00023835,3]
[349815580,1737447046022,-500.0,0.00023835,3]
[349815582,1737447046031,-1140.41,0.00023835,3]
[349815583,1737447046041,-2502.49,0.00023835,3]
[349815584,1737447046051,-6827.36,0.00023835,3]
[349815585,1737447046062,-617.21,0.00023835,3]
[349815586,1737447046072,-516.7,0.00023835,3]
[349815588,1737447046082,-846.67,0.00023835,3]
[349815589,1737447046091,-1664.63,0.00023835,3]
[349815590,1737447046100,-3068.8,0.00023835,3]
[349815591,1737447046110,-649.81,0.00023835,3]
[349815592,1737447046119,-19863.67,0.00023835,3]
[349815593,1737447046129,-900.06,0.00023835,3]
[349815594,1737447046139,-500.0,0.00023835,3]
[349815595,1737447046148,-1850.83,0.00023835,3]
[349815596,1737447046158,-480.84154705,0.00023835,3]
[349815597,1737447046258,-1200.0,0.0002315,2]
[349815598,1737447046268,-757.46419623,0.00023521,3]
[349815599,1737447046277,-757.46419623,0.0002359,3]
[349815600,1737447046286,-757.46419623,0.00023659,3]
[349815601,1737447046296,-757.46419623,0.00023728,3]
[349815602,1737447046305,-757.46419623,0.00023797,3]
[349815603,1737447046314,-19.15845295,0.00023835,3]
[349815604,1737447046323,-763.55,0.00023835,3]
[349815605,1737447046332,-728.43,0.00023835,3]
[349815606,1737447046341,-540.1,0.00023835,3]
[349815607,1737447046350,-1507.39,0.00023835,3]
[349815608,1737447046360,-500.0,0.00023835,3]
[349815609,1737447046369,-763.12,0.00023835,3]
[349815610,1737447046379,-1194.01,0.00023835,3]
[349815611,1737447046388,-543.78,0.00023835,3]
[349815612,1737447046397,-753.14,0.00023835,3]
[349815613,1737447046407,-500.0,0.00023835,3]
[349815614,1737447046417,-500.0,0.00023835,3]
[349815615,1737447046427,-544.16,0.00023835,3]
[349815616,1737447046436,-2057.37,0.00023835,3]
[349815617,1737447046446,-680.11,0.00023835,3]
[349815619,1737447046455,-3487.54,0.00023835,3]
[349815620,1737447046465,-757.46419623,0.00023866,3]
[349815622,1737447046476,-757.46419623,0.00023934,3]
[349815624,1737447046486,-500.0,0.00023972,3]
[349815626,1737447046495,-500.0,0.00023972,3]
[349815628,1737447046504,-500.0,0.00023972,3]
[349815629,1737447046513,-106.88469225,0.00023972,3]
[349815630,1737447046525,-393.11530775,0.00023972,3]
[349815631,1737447046534,-106.88142475,0.00023972,3]
[349815632,1737447046545,-410.08620209,0.00023972,3]
[349815633,1737447046554,-500.0,0.00023972,3]
[349815634,1737447046563,-500.0,0.00023972,3]
[349815635,1737447046571,-247.24341262,0.00023972,3]
[349815636,1737447046580,-500.0,0.00023972,2]
[349815637,1737447046590,-1069.65,0.00023972,3]
[349815638,1737447046599,-494.1259477,0.00023972,3]
[349815639,1737447046608,-500.0,0.00023972,3]
[349815641,1737447046617,-1948.11,0.00023972,3]
[349815643,1737447046626,-621.07,0.00023972,3]
[349815644,1737447046636,-1386.82,0.00023972,3]
[349815645,1737447046645,-581.99,0.00023972,3]
[349815646,1737447046654,-759.93,0.00023972,3]
[349815647,1737447046663,-500.0,0.00023972,3]
[349815649,1737447046672,-571.72,0.00023972,3]
[349815651,1737447046682,-258.25443759,0.00023972,3]
[349815653,1737447046694,-379.08556241,0.00023972,3]
[349815655,1737447046704,-1257.57,0.00023972,3]
[349815657,1737447046713,-500.0,0.00023972,3]
[349815659,1737447046722,-1140.41,0.00023972,3]
[349815661,1737447046732,-2502.49,0.00023972,3]
[349815663,1737447046741,-6827.36,0.00023972,3]
[349815664,1737447046751,-617.21,0.00023972,3]
[349815666,1737447046761,-516.7,0.00023972,3]
[349815668,1737447046770,-846.67,0.00023972,3]
[349815670,1737447046780,-1664.63,0.00023972,3]
[349815672,1737447046789,-3068.8,0.00023972,3]
[349815674,1737447046799,-649.81,0.00023972,3]
[349815676,1737447046808,-5999.17560189,0.00023972,3]
[349815684,1737447046909,-1200.0,0.00022918,2]
[349815685,1737447046920,-529.56473821,0.00023435,2]
[349815687,1737447046937,-2143.79727557,0.00023435,2]
[349815689,1737447046948,-13864.49439811,0.00023972,3]
[349815690,1737447046958,-900.06,0.00023972,3]
[349815691,1737447046968,-500.0,0.00023972,3]
[349815692,1737447046984,-1850.83,0.00023972,3]
[349815693,1737447046993,-500.0,0.00023972,3]
[349815694,1737447047003,-763.55,0.00023972,3]
[349815695,1737447047013,-728.43,0.00023972,3]
[349815696,1737447047023,-540.1,0.00023972,3]
[349815697,1737447047032,-1507.39,0.00023972,3]
[349815698,1737447047041,-453.01647878,0.00023972,3]
[349815699,1737447047051,-763.12,0.00023972,3]
[349815700,1737447047061,-1194.01,0.00023972,3]
[349815701,1737447047071,-543.78,0.00023972,3]
[349815703,1737447047080,-753.14,0.00023972,3]
[349815704,1737447047090,-500.0,0.00023972,3]
[349815706,1737447047100,-500.0,0.00023972,3]
[349815708,1737447047110,-544.16,0.00023972,3]
[349815710,1737447047120,-2057.37,0.00023972,3]
[349815712,1737447047129,-680.11,0.00023972,3]
[349815714,1737447047138,-3487.54,0.00023972,3]
[349815716,1737447047148,-500.0,0.0002399,2]
[349815718,1737447047158,-20468.96042577,0.00023999,2]
[349815720,1737447047167,-1000.0,0.00024,24]
[349815722,1737447047176,-30000.0,0.00024,10]
[349815724,1737447047186,-30000.0,0.00024,10]
[349815738,1737447047306,-39747.75064141,0.00024,10]
[349815790,1737447621723,165.001598,0.00013973,2]
[349815842,1737448232003,-424.84278194,0.00015682,2]
[349815843,1737448232013,-424.84278194,0.0001584,2]